Workbook

Sheet Certificación Relación Anual
H1: C.E.E. Solicitante
H2: DNI/NIF: | W2: NºExp
H3: Nome da persoa representante:
H4: Programa III: Programa de axudas ao mantemento do custo salarial nos C.E.E. (Procedemento TR341M)
H5: Tipo de Axuda: Subvencion para a financiación do custo salarial de todas a persoas traballadoras con discapacidade contratadas en C.E.E. do territorio da Comunidade Autónoma de Galicia
A6: RELACIÓN PERSOAL CON DISCAPACIDADE | F6: Convocatoria de Axudas | G6: desde | H6: hasta | J6: P.Trab. Subvencionadas | L6: 60% SMI | M6: 50% SMI | N6: Tot. Persoas | O6: 1º mes de | R6: Total Periodo | T6: Total Certificación | W6: CERTIFICACIÓN DA RELACIÓN DO | AN6: fin
B7: ="MES DE XULLO DE "&YEAR(G7) -> MES DE XULLO DE 2023 | F7: Periodo subvencionable | G7: 2023-07-01 | H7: =(DAY(G7)&"/"&(VALUE(MONTH(G7))+5)&"/"&YEAR(G7))-1 -> 2023-11-30 | J7: Homes | L7: =COUNTIFS(I10:I36,"H",E10:E36,1) -> 0 | M7: =COUNTIFS(I10:I36,"H",E10:E36,0) -> 0 | N7: Traballadoras | O7: Solicitude | Q7: =IF(MONTH(G7)=7,"Xullo","") -> Xullo | S7: =SUBTOTAL(9,S11:S36) -> 0 | T7: Relación Anual | W7: CADRO DE PERSOAL POLO CAL SE | AC7: 7 | AD7: 8 | AE7: 9 | AF7: 10 | AG7: 11
A8: Novo IdX | B8: nº Rexistro | C8: Salario | G8: =H7+1 -> 2023-12-01 | H8: =H7 -> 2023-11-30 | J8: Mulleres | L8: =COUNTIFS(I10:I36,"M",E10:E36,1) -> 0 | M8: =COUNTIFS(I10:I36,"M",E10:E36,0) -> 0 | N8: =SUM(L7:M8) -> 0 | U8: =SUBTOTAL(9,U11:U36) -> 0 | W8: SOLICITA A SUBV.DO CUSTO SALARIAL | AC8: =$G$7 -> 2023-07-01 | AD8: =AC9+1 -> 2023-08-01 | AE8: =AD9+1 -> 2023-09-01 | AF8: 2023-10-01 | AG8: 2023-11-01 | AN8: =$G$7 -> 2023-07-01 | AO8: =AN9+1 -> 2023-08-01 | AP8: =AO9+1 -> 2023-09-01 | AQ8: =AP9+1 -> 2023-10-01 | AR8: =AQ9+1 -> 2023-11-01 | AX8: 5 | AY8: =COLUMN() -> 51
A9: =MAXA(A11:A36)+1 -> 1 | B9: ou data pub. | C9: Convenio | D9: Conv | E9: G | H9: Data | M9: Data | N9: Data | O9: Cóntrato | Q9: % | R9: Anualidade | U9: Total | W9: Dias | X9: Período subvención | AC9: =(1&"/"&IF(MONTH(AC8)+1>12,12-MONTH(AC8)+1,(MONTH(AC8)+1)&"/"&IF(MONTH(AC8)+1>12,YEAR(AC8)+1,YEAR(AC8))))-1 -> 2023-07-31 | AD9: =(1&"/"&IF(MONTH(AD8)+1>12,12-MONTH(AD8)+1,(MONTH(AD8)+1)&"/"&IF(MONTH(AD8)+1>12,YEAR(AD8)+1,YEAR(AD8))))-1 -> 2023-08-31 | AE9: =(1&"/"&IF(MONTH(AE8)+1>12,12-MONTH(AE8)+1,(MONTH(AE8)+1)&"/"&IF(MONTH(AE8)+1>12,YEAR(AE8)+1,YEAR(AE8))))-1 -> 2023-09-30 | AF9: 2023-10-31 | AG9: 2023-11-30 | AH9: DiaIni | AI9: MesIni | AJ9: AñoIni | AK9: DiaFin | AL9: MesFin | AM9: AñoFin | AN9: =(1&"/"&IF(MONTH(AN8)+1>12,12-MONTH(AN8)+1,(MONTH(AN8)+1)&"/"&IF(MONTH(AN8)+1>12,YEAR(AN8)+1,YEAR(AN8))))-1 -> 2023-07-31 | AO9: =(1&"/"&IF(MONTH(AO8)+1>12,12-MONTH(AO8)+1,(MONTH(AO8)+1)&"/"&IF(MONTH(AO8)+1>12,YEAR(AO8)+1,YEAR(AO8))))-1 -> 2023-08-31 | AP9: =(1&"/"&IF(MONTH(AP8)+1>12,12-MONTH(AP8)+1,(MONTH(AP8)+1)&"/"&IF(MONTH(AP8)+1>12,YEAR(AP8)+1,YEAR(AP8))))-1 -> 2023-09-30 | AQ9: 2023-10-31 | AR9: 2023-11-30
A10: IdX | B10: Conv. Col | C10: Colectivo | D10: Baixa | E10: D | F10: Traballador | G10: N.I.F. | H10: Nacemento | I10: Sexo | J10: Discapacidade | K10: Grao | L10: Tipo | M10: Alta | N10: Baixa2 | O10: Código | P10: Tipo | Q10: Xornada | R10: Días | S10: Achega Sol. | W10: Periodo | X10: 7 | Y10: 8 | Z10: 9 | AA10: 10 | AB10: 11 | AC10: Columna6 | AD10: Columna7 | AE10: Columna8 | AF10: Columna9 | AG10: Columna10 | AH10: Columna11 | AI10: Columna12 | AJ10: Columna13 | AK10: Columna14 | AL10: Columna15 | AM10: Columna16 | AN10: Columna17 | AO10: Columna18 | AP10: Columna19 | AQ10: Columna20 | AR10: Columna21 | AS10: ini periodo 1º | AT10: fin periodo 1º | AU10: Dias periodo 1º | AV10: Columna22 | AW10: TotDias1º | AX10: 5 | AY10: Columna24 | AZ10: Observacións | BA10: Columna25
E11: =IF(J11="","",IF(K11>=65,1,IF(AND(K11>=33,OR(J11="P. Cerebral",J11="Enf. Mental",J11="D. Intelectual",J11="Psíquica")),1,0))) ->  | P11: =IFERROR(VLOOKUP(O11,Códigos!K:N,2,FALSE),"") ->  | R11: =IF(AND(OR(O11=402,O11=502),N11=""),"",IF(BA11=1,"",W11)) ->  | S11: =IF(AND(OR(O11=402,O11=502),N11=""),"",IF(BA11=1,"",IFERROR(IF(AW11="","",IF(AW11>0,(AW11*VLOOKUP(E11&"AM+E",Códigos!$A$2:$F$14,5,FALSE)*(IF($Q11>100,0,$Q11)/100)),0)),0))) -> 0 | U11: =IFERROR(IF(IF(S11="",0,S11)+IF(T11="",0,T11)=0,"",IF(S11="",0,S11)+IF(T11="",0,T11)),"") ->  | W11: =IFERROR(IF(SUM(X11:AB11)=0,"",SUM(X11:AB11)),"") ->  | X11: =IF(OR(AC11=0,AN11=0),"",IF(AN11-AC11+1>30,30,AN11-AC11+1)) ->  | Y11: =IF(OR(AD11=0,AO11=0),"",IF(AO11-AD11+1>30,30,AO11-AD11+1)) ->  | Z11: =IF(OR(AE11=0,AP11=0),"",IF(AP11-AE11+1>30,30,AP11-AE11+1)) ->  | AA11: =IF(OR(AF11=0,AQ11=0),"",IF(AQ11-AF11+1>30,30,AQ11-AF11+1)) ->  | AB11: =IF(OR(AG11=0,AR11=0),"",IF(AR11-AG11+1>30,30,AR11-AG11+1)) ->  | AC11: =IF($M11="",0,IF($M11<=AC$8,1,IF(YEAR($M11)=YEAR(AC$8),IF(MONTH($M11)=MONTH(AC$8),DAY($M11),0)))) -> 0 | AD11: 0 | AE11: 0 | AF11: 0 | AG11: 0 | AH11: =IF(M11="",DAY($G$7),DAY(M11)) -> 1 | AI11: =IF(M11="",MONTH($G$7),MONTH(M11)) -> 7 | AJ11: =IF(M11="",YEAR($G$7),YEAR(M11)) -> 2023 | AK11: =IFERROR(IF(N11="",DAY($H$7),DAY(N11)),DAY($H$7)) -> 30 | AL11: =IFERROR(IF(N11="",MONTH($H$7),MONTH(N11)),MONTH($H$7)) -> 11 | AM11: =IFERROR(IF(N11="",YEAR($H$7),YEAR(N11)),YEAR($H$7)) -> 2023 | AN11: =IF($N11="",DAY(AN$9),IF($N11>=AN$9,DAY(AN$9),IF(MONTH($N11)=MONTH(AN$9),DAY($N11),0))) -> 31 | AO11: 31 | AP11: 30 | AQ11: 31 | AR11: 30 | AS11: =IF(M11<=$G$7,$G$7,IF(AND(M11>$G$7,M11<=$H$7),M11,IF(M11>$H$7,1))) -> 2023-07-01 | AT11: =IF(N11="",$H$7,N11) -> 2023-11-30 | AU11: =DAYS360(AS11-1,AT11) -> 150 | AV11: =IF(AU11=W11,"Ok","") ->  | AW11: =AU11 -> 150 | AX11: =IF(COLUMN()>0,5,5) -> 5 | AY11: =IFERROR(IF(AND(F11>0,G11>0),7,0),7) -> 0 | BA11: =IF(IFERROR(VLOOKUP(AZ11,$G$10:$G$35,1,0),"")="","",1) -> 
P12: =IFERROR(VLOOKUP(O12,Códigos!K:N,2,FALSE),"") ->  | R12: =IF(AND(OR(O12=402,O12=502),N12=""),"",IF(BA12=1,"",W12)) ->  | S12: =IF(AND(OR(O12=402,O12=502),N12=""),"",IF(BA12=1,"",IFERROR(IF(AW12="","",IF(AW12>0,(AW12*VLOOKUP(E12&"AM+E",Códigos!$A$2:$F$14,5,FALSE)*(IF($Q12>100,0,$Q12)/100)),0)),0))) -> 0 | U12: =IFERROR(IF(IF(S12="",0,S12)+IF(T12="",0,T12)=0,"",IF(S12="",0,S12)+IF(T12="",0,T12)),"") ->  | W12: =IFERROR(IF(SUM(X12:AB12)=0,"",SUM(X12:AB12)),"") ->  | X12: =IF(OR(AC12=0,AN12=0),"",IF(AN12-AC12+1>30,30,AN12-AC12+1)) ->  | AC12: 0 | AD12: 0 | AE12: 0 | AF12: 0 | AG12: 0 | AH12: =IF(M12="",DAY($G$7),DAY(M12)) -> 1 | AI12: =IF(M12="",MONTH($G$7),MONTH(M12)) -> 7 | AJ12: =IF(M12="",YEAR($G$7),YEAR(M12)) -> 2023 | AK12: =IFERROR(IF(N12="",DAY($H$7),DAY(N12)),DAY($H$7)) -> 30 | AL12: =IFERROR(IF(N12="",MONTH($H$7),MONTH(N12)),MONTH($H$7)) -> 11 | AM12: =IFERROR(IF(N12="",YEAR($H$7),YEAR(N12)),YEAR($H$7)) -> 2023 | AN12: 31 | AO12: 31 | AP12: 30 | AQ12: 31 | AR12: 30 | AS12: =IF(M12<=$G$7,$G$7,IF(AND(M12>$G$7,M12<=$H$7),M12,IF(M12>$H$7,1))) -> 2023-07-01 | AT12: 2023-11-30 | AU12: =DAYS360(AS12-1,AT12) -> 150 | AV12: =IF(AU12=W12,"Ok","") ->  | AW12: =AU12 -> 150 | AX12: 5 | AY12: =IFERROR(IF(AND(F12>0,G12>0),7,0),7) -> 0
P13: =IFERROR(VLOOKUP(O13,Códigos!K:N,2,FALSE),"") ->  | R13: =IF(AND(OR(O13=402,O13=502),N13=""),"",IF(BA13=1,"",W13)) ->  | S13: =IF(AND(OR(O13=402,O13=502),N13=""),"",IF(BA13=1,"",IFERROR(IF(AW13="","",IF(AW13>0,(AW13*VLOOKUP(E13&"AM+E",Códigos!$A$2:$F$14,5,FALSE)*(IF($Q13>100,0,$Q13)/100)),0)),0))) -> 0 | U13: =IFERROR(IF(IF(S13="",0,S13)+IF(T13="",0,T13)=0,"",IF(S13="",0,S13)+IF(T13="",0,T13)),"") ->  | W13: =IFERROR(IF(SUM(X13:AB13)=0,"",SUM(X13:AB13)),"") ->  | X13: =IF(OR(AC13=0,AN13=0),"",IF(AN13-AC13+1>30,30,AN13-AC13+1)) ->  | Y13: =IF(OR(AD13=0,AO13=0),"",IF(AO13-AD13+1>30,30,AO13-AD13+1)) ->  | Z13: =IF(OR(AE13=0,AP13=0),"",IF(AP13-AE13+1>30,30,AP13-AE13+1)) ->  | AA13: =IF(OR(AF13=0,AQ13=0),"",IF(AQ13-AF13+1>30,30,AQ13-AF13+1)) ->  | AB13: =IF(OR(AG13=0,AR13=0),"",IF(AR13-AG13+1>30,30,AR13-AG13+1)) ->  | AC13: =IF($M13="",0,IF($M13<=AC$8,1,IF(YEAR($M13)=YEAR(AC$8),IF(MONTH($M13)=MONTH(AC$8),DAY($M13),0)))) -> 0 | AD13: =IF($M13="",0,IF($M13<=AD$8,1,IF(YEAR($M13)=YEAR(AD$8),IF(MONTH($M13)=MONTH(AD$8),DAY($M13),0)))) -> 0 | AE13: =IF($M13="",0,IF($M13<=AE$8,1,IF(YEAR($M13)=YEAR(AE$8),IF(MONTH($M13)=MONTH(AE$8),DAY($M13),0)))) -> 0 | AF13: =IF($M13="",0,IF($M13<=AF$8,1,IF(YEAR($M13)=YEAR(AF$8),IF(MONTH($M13)=MONTH(AF$8),DAY($M13),0)))) -> 0 | AG13: =IF($M13="",0,IF($M13<=AG$8,1,IF(YEAR($M13)=YEAR(AG$8),IF(MONTH($M13)=MONTH(AG$8),DAY($M13),0)))) -> 0 | AH13: =IF(M13="",DAY($G$7),DAY(M13)) -> 1 | AI13: =IF(M13="",MONTH($G$7),MONTH(M13)) -> 7 | AJ13: =IF(M13="",YEAR($G$7),YEAR(M13)) -> 2023 | AK13: =IFERROR(IF(N13="",DAY($H$7),DAY(N13)),DAY($H$7)) -> 30 | AL13: =IFERROR(IF(N13="",MONTH($H$7),MONTH(N13)),MONTH($H$7)) -> 11 | AM13: =IFERROR(IF(N13="",YEAR($H$7),YEAR(N13)),YEAR($H$7)) -> 2023 | AN13: =IF($N13="",DAY(AN$9),IF($N13>=AN$9,DAY(AN$9),IF(MONTH($N13)=MONTH(AN$9),DAY($N13),0))) -> 31 | AO13: =IF($N13="",DAY(AO$9),IF($N13>=AO$9,DAY(AO$9),IF(MONTH($N13)=MONTH(AO$9),DAY($N13),0))) -> 31 | AP13: =IF($N13="",DAY(AP$9),IF($N13>=AP$9,DAY(AP$9),IF(MONTH($N13)=MONTH(AP$9),DAY($N13),0))) -> 30 | AQ13: =IF($N13="",DAY(AQ$9),IF($N13>=AQ$9,DAY(AQ$9),IF(MONTH($N13)=MONTH(AQ$9),DAY($N13),0))) -> 31 | AR13: =IF($N13="",DAY(AR$9),IF($N13>=AR$9,DAY(AR$9),IF(MONTH($N13)=MONTH(AR$9),DAY($N13),0))) -> 30 | AS13: =IF(M13<=$G$7,$G$7,IF(AND(M13>$G$7,M13<=$H$7),M13,IF(M13>$H$7,1))) -> 2023-07-01 | AT13: 2023-11-30 | AU13: =DAYS360(AS13-1,AT13) -> 150 | AV13: =IF(AU13=W13,"Ok","") ->  | AW13: =AU13 -> 150 | AX13: 5 | AY13: 0 | BA13: =IF(IFERROR(VLOOKUP(AZ13,$G$10:$G$35,1,0),"")="","",1) -> 
P14: =IFERROR(VLOOKUP(O14,Códigos!K:N,2,FALSE),"") ->  | R14: =IF(AND(OR(O14=402,O14=502),N14=""),"",IF(BA14=1,"",W14)) ->  | S14: =IF(AND(OR(O14=402,O14=502),N14=""),"",IF(BA14=1,"",IFERROR(IF(AW14="","",IF(AW14>0,(AW14*VLOOKUP(E14&"AM+E",Códigos!$A$2:$F$14,5,FALSE)*(IF($Q14>100,0,$Q14)/100)),0)),0))) -> 0 | U14: =IFERROR(IF(IF(S14="",0,S14)+IF(T14="",0,T14)=0,"",IF(S14="",0,S14)+IF(T14="",0,T14)),"") ->  | W14: =IFERROR(IF(SUM(X14:AB14)=0,"",SUM(X14:AB14)),"") ->  | AC14: 0 | AD14: 0 | AE14: 0 | AF14: 0 | AG14: 0 | AH14: 1 | AI14: 7 | AJ14: 2023 | AK14: =IFERROR(IF(N14="",DAY($H$7),DAY(N14)),DAY($H$7)) -> 30 | AL14: =IFERROR(IF(N14="",MONTH($H$7),MONTH(N14)),MONTH($H$7)) -> 11 | AM14: =IFERROR(IF(N14="",YEAR($H$7),YEAR(N14)),YEAR($H$7)) -> 2023 | AN14: 31 | AO14: 31 | AP14: 30 | AQ14: 31 | AR14: 30 | AS14: =IF(M14<=$G$7,$G$7,IF(AND(M14>$G$7,M14<=$H$7),M14,IF(M14>$H$7,1))) -> 2023-07-01 | AT14: 2023-11-30 | AU14: =DAYS360(AS14-1,AT14) -> 150 | AV14: =IF(AU14=W14,"Ok","") ->  | AW14: =AU14 -> 150 | AX14: 5 | AY14: 0
P15: =IFERROR(VLOOKUP(O15,Códigos!K:N,2,FALSE),"") ->  | S15: =IF(AND(OR(O15=402,O15=502),N15=""),"",IF(BA15=1,"",IFERROR(IF(AW15="","",IF(AW15>0,(AW15*VLOOKUP(E15&"AM+E",Códigos!$A$2:$F$14,5,FALSE)*(IF($Q15>100,0,$Q15)/100)),0)),0))) -> 0 | W15: =IFERROR(IF(SUM(X15:AB15)=0,"",SUM(X15:AB15)),"") ->  | AC15: 0 | AD15: 0 | AE15: 0 | AF15: 0 | AG15: 0 | AH15: 1 | AI15: 7 | AJ15: 2023 | AK15: 30 | AL15: 11 | AM15: 2023 | AN15: 31 | AO15: 31 | AP15: 30 | AQ15: 31 | AR15: 30 | AS15: 2023-07-01 | AT15: 2023-11-30 | AU15: =DAYS360(AS15-1,AT15) -> 150 | AW15: 150 | AX15: 5 | AY15: 0
P16: =IFERROR(VLOOKUP(O16,Códigos!K:N,2,FALSE),"") ->  | S16: =IF(AND(OR(O16=402,O16=502),N16=""),"",IF(BA16=1,"",IFERROR(IF(AW16="","",IF(AW16>0,(AW16*VLOOKUP(E16&"AM+E",Códigos!$A$2:$F$14,5,FALSE)*(IF($Q16>100,0,$Q16)/100)),0)),0))) -> 0 | AC16: 0 | AD16: 0 | AE16: 0 | AF16: 0 | AG16: 0 | AH16: 1 | AI16: 7 | AJ16: 2023 | AK16: 30 | AL16: 11 | AM16: 2023 | AN16: 31 | AO16: 31 | AP16: 30 | AQ16: 31 | AR16: 30 | AS16: 2023-07-01 | AT16: 2023-11-30 | AU16: 150 | AW16: 150 | AX16: 5 | AY16: 0
P17: =IFERROR(VLOOKUP(O17,Códigos!K:N,2,FALSE),"") ->  | S17: =IF(AND(OR(O17=402,O17=502),N17=""),"",IF(BA17=1,"",IFERROR(IF(AW17="","",IF(AW17>0,(AW17*VLOOKUP(E17&"AM+E",Códigos!$A$2:$F$14,5,FALSE)*(IF($Q17>100,0,$Q17)/100)),0)),0))) -> 0 | AC17: 0 | AD17: 0 | AE17: 0 | AF17: 0 | AG17: 0 | AH17: 1 | AI17: 7 | AJ17: 2023 | AK17: 30 | AL17: 11 | AM17: 2023 | AN17: 31 | AO17: 31 | AP17: 30 | AQ17: 31 | AR17: 30 | AS17: 2023-07-01 | AT17: 2023-11-30 | AU17: 150 | AW17: 150 | AX17: 5 | AY17: =IFERROR(IF(AND(F17>0,G17>0),7,0),7) -> 0
P18: =IFERROR(VLOOKUP(O18,Códigos!K:N,2,FALSE),"") ->  | S18: =IF(AND(OR(O18=402,O18=502),N18=""),"",IF(BA18=1,"",IFERROR(IF(AW18="","",IF(AW18>0,(AW18*VLOOKUP(E18&"AM+E",Códigos!$A$2:$F$14,5,FALSE)*(IF($Q18>100,0,$Q18)/100)),0)),0))) -> 0 | AC18: 0 | AD18: 0 | AE18: 0 | AF18: 0 | AG18: 0 | AH18: 1 | AI18: 7 | AJ18: 2023 | AK18: 30 | AL18: 11 | AM18: 2023 | AN18: 31 | AO18: 31 | AP18: 30 | AQ18: 31 | AR18: 30 | AS18: 2023-07-01 | AT18: 2023-11-30 | AU18: 150 | AW18: 150 | AX18: 5 | AY18: 0
P19: =IFERROR(VLOOKUP(O19,Códigos!K:N,2,FALSE),"") ->  | S19: =IF(AND(OR(O19=402,O19=502),N19=""),"",IF(BA19=1,"",IFERROR(IF(AW19="","",IF(AW19>0,(AW19*VLOOKUP(E19&"AM+E",Códigos!$A$2:$F$14,5,FALSE)*(IF($Q19>100,0,$Q19)/100)),0)),0))) -> 0 | AC19: 0 | AD19: 0 | AE19: 0 | AF19: 0 | AG19: 0 | AH19: 1 | AI19: 7 | AJ19: 2023 | AK19: 30 | AL19: 11 | AM19: 2023 | AN19: 31 | AO19: 31 | AP19: 30 | AQ19: 31 | AR19: 30 | AS19: 2023-07-01 | AT19: 2023-11-30 | AU19: 150 | AW19: 150 | AX19: 5 | AY19: 0
S20: =IF(AND(OR(O20=402,O20=502),N20=""),"",IF(BA20=1,"",IFERROR(IF(AW20="","",IF(AW20>0,(AW20*VLOOKUP(E20&"AM+E",Códigos!$A$2:$F$14,5,FALSE)*(IF($Q20>100,0,$Q20)/100)),0)),0))) -> 0 | AC20: 0 | AD20: 0 | AE20: 0 | AF20: 0 | AG20: 0 | AH20: 1 | AI20: 7 | AJ20: 2023 | AK20: 30 | AL20: 11 | AM20: 2023 | AN20: 31 | AO20: 31 | AP20: 30 | AQ20: 31 | AR20: 30 | AS20: 2023-07-01 | AT20: 2023-11-30 | AU20: 150 | AW20: 150 | AX20: 5 | AY20: =IFERROR(IF(AND(F20>0,G20>0),7,0),7) -> 0
P21: =IFERROR(VLOOKUP(O21,Códigos!K:N,2,FALSE),"") ->  | S21: =IF(AND(OR(O21=402,O21=502),N21=""),"",IF(BA21=1,"",IFERROR(IF(AW21="","",IF(AW21>0,(AW21*VLOOKUP(E21&"AM+E",Códigos!$A$2:$F$14,5,FALSE)*(IF($Q21>100,0,$Q21)/100)),0)),0))) -> 0 | AC21: 0 | AD21: 0 | AE21: 0 | AF21: 0 | AG21: 0 | AH21: 1 | AI21: 7 | AJ21: 2023 | AK21: 30 | AL21: 11 | AM21: 2023 | AN21: 31 | AO21: 31 | AP21: 30 | AQ21: 31 | AR21: 30 | AS21: 2023-07-01 | AT21: 2023-11-30 | AU21: 150 | AW21: 150 | AX21: 5 | AY21: =IFERROR(IF(AND(F21>0,G21>0),7,0),7) -> 0
P22: =IFERROR(VLOOKUP(O22,Códigos!K:N,2,FALSE),"") ->  | S22: =IF(AND(OR(O22=402,O22=502),N22=""),"",IF(BA22=1,"",IFERROR(IF(AW22="","",IF(AW22>0,(AW22*VLOOKUP(E22&"AM+E",Códigos!$A$2:$F$14,5,FALSE)*(IF($Q22>100,0,$Q22)/100)),0)),0))) -> 0 | AC22: =IF($M22="",0,IF($M22<=AC$8,1,IF(YEAR($M22)=YEAR(AC$8),IF(MONTH($M22)=MONTH(AC$8),DAY($M22),0)))) -> 0 | AD22: 0 | AE22: 0 | AF22: 0 | AG22: 0 | AH22: 1 | AI22: 7 | AJ22: 2023 | AK22: 30 | AL22: 11 | AM22: 2023 | AN22: =IF($N22="",DAY(AN$9),IF($N22>=AN$9,DAY(AN$9),IF(MONTH($N22)=MONTH(AN$9),DAY($N22),0))) -> 31 | AO22: 31 | AP22: 30 | AQ22: 31 | AR22: 30 | AS22: 2023-07-01 | AT22: 2023-11-30 | AU22: 150 | AW22: 150 | AX22: 5 | AY22: 0
P23: =IFERROR(VLOOKUP(O23,Códigos!K:N,2,FALSE),"") ->  | S23: =IF(AND(OR(O23=402,O23=502),N23=""),"",IF(BA23=1,"",IFERROR(IF(AW23="","",IF(AW23>0,(AW23*VLOOKUP(E23&"AM+E",Códigos!$A$2:$F$14,5,FALSE)*(IF($Q23>100,0,$Q23)/100)),0)),0))) -> 0 | AC23: 0 | AD23: 0 | AE23: 0 | AF23: 0 | AG23: 0 | AH23: 1 | AI23: 7 | AJ23: 2023 | AK23: 30 | AL23: 11 | AM23: 2023 | AN23: 31 | AO23: 31 | AP23: 30 | AQ23: 31 | AR23: 30 | AS23: 2023-07-01 | AT23: 2023-11-30 | AU23: 150 | AW23: 150 | AX23: 5 | AY23: 0
P24: =IFERROR(VLOOKUP(O24,Códigos!K:N,2,FALSE),"") ->  | S24: =IF(AND(OR(O24=402,O24=502),N24=""),"",IF(BA24=1,"",IFERROR(IF(AW24="","",IF(AW24>0,(AW24*VLOOKUP(E24&"AM+E",Códigos!$A$2:$F$14,5,FALSE)*(IF($Q24>100,0,$Q24)/100)),0)),0))) -> 0 | AC24: 0 | AD24: 0 | AE24: 0 | AF24: 0 | AG24: 0 | AH24: 1 | AI24: 7 | AJ24: 2023 | AK24: 30 | AL24: 11 | AM24: 2023 | AN24: 31 | AO24: 31 | AP24: 30 | AQ24: 31 | AR24: 30 | AS24: 2023-07-01 | AT24: 2023-11-30 | AU24: 150 | AW24: 150 | AX24: 5 | AY24: 0
P25: =IFERROR(VLOOKUP(O25,Códigos!K:N,2,FALSE),"") ->  | S25: =IF(AND(OR(O25=402,O25=502),N25=""),"",IF(BA25=1,"",IFERROR(IF(AW25="","",IF(AW25>0,(AW25*VLOOKUP(E25&"AM+E",Códigos!$A$2:$F$14,5,FALSE)*(IF($Q25>100,0,$Q25)/100)),0)),0))) -> 0 | AC25: 0 | AD25: 0 | AE25: 0 | AF25: 0 | AG25: 0 | AH25: 1 | AI25: 7 | AJ25: 2023 | AK25: 30 | AL25: 11 | AM25: 2023 | AN25: 31 | AO25: 31 | AP25: 30 | AQ25: 31 | AR25: 30 | AS25: 2023-07-01 | AT25: 2023-11-30 | AU25: 150 | AW25: 150 | AX25: 5 | AY25: 0
P26: =IFERROR(VLOOKUP(O26,Códigos!K:N,2,FALSE),"") ->  | S26: =IF(AND(OR(O26=402,O26=502),N26=""),"",IF(BA26=1,"",IFERROR(IF(AW26="","",IF(AW26>0,(AW26*VLOOKUP(E26&"AM+E",Códigos!$A$2:$F$14,5,FALSE)*(IF($Q26>100,0,$Q26)/100)),0)),0))) -> 0 | AC26: 0 | AD26: 0 | AE26: 0 | AF26: 0 | AG26: 0 | AH26: 1 | AI26: 7 | AJ26: 2023 | AK26: 30 | AL26: 11 | AM26: 2023 | AN26: 31 | AO26: 31 | AP26: 30 | AQ26: 31 | AR26: 30 | AS26: 2023-07-01 | AT26: 2023-11-30 | AU26: 150 | AW26: 150 | AX26: 5 | AY26: 0
P27: =IFERROR(VLOOKUP(O27,Códigos!K:N,2,FALSE),"") ->  | S27: =IF(AND(OR(O27=402,O27=502),N27=""),"",IF(BA27=1,"",IFERROR(IF(AW27="","",IF(AW27>0,(AW27*VLOOKUP(E27&"AM+E",Códigos!$A$2:$F$14,5,FALSE)*(IF($Q27>100,0,$Q27)/100)),0)),0))) -> 0 | AC27: 0 | AD27: 0 | AE27: 0 | AF27: 0 | AG27: 0 | AH27: 1 | AI27: 7 | AJ27: 2023 | AK27: 30 | AL27: 11 | AM27: 2023 | AN27: 31 | AO27: 31 | AP27: 30 | AQ27: 31 | AR27: 30 | AS27: 2023-07-01 | AT27: 2023-11-30 | AU27: 150 | AW27: 150 | AX27: 5 | AY27: 0
P28: =IFERROR(VLOOKUP(O28,Códigos!K:N,2,FALSE),"") ->  | S28: =IF(AND(OR(O28=402,O28=502),N28=""),"",IF(BA28=1,"",IFERROR(IF(AW28="","",IF(AW28>0,(AW28*VLOOKUP(E28&"AM+E",Códigos!$A$2:$F$14,5,FALSE)*(IF($Q28>100,0,$Q28)/100)),0)),0))) -> 0 | AC28: 0 | AD28: 0 | AE28: 0 | AF28: 0 | AG28: 0 | AH28: 1 | AI28: 7 | AJ28: 2023 | AK28: 30 | AL28: 11 | AM28: 2023 | AN28: 31 | AO28: 31 | AP28: 30 | AQ28: 31 | AR28: 30 | AS28: 2023-07-01 | AT28: 2023-11-30 | AU28: 150 | AW28: 150 | AX28: 5 | AY28: 0
P29: =IFERROR(VLOOKUP(O29,Códigos!K:N,2,FALSE),"") ->  | S29: =IF(AND(OR(O29=402,O29=502),N29=""),"",IF(BA29=1,"",IFERROR(IF(AW29="","",IF(AW29>0,(AW29*VLOOKUP(E29&"AM+E",Códigos!$A$2:$F$14,5,FALSE)*(IF($Q29>100,0,$Q29)/100)),0)),0))) -> 0 | AC29: 0 | AD29: 0 | AE29: 0 | AF29: 0 | AG29: 0 | AH29: 1 | AI29: 7 | AJ29: 2023 | AK29: 30 | AL29: 11 | AM29: 2023 | AN29: 31 | AO29: 31 | AP29: 30 | AQ29: 31 | AR29: 30 | AS29: 2023-07-01 | AT29: 2023-11-30 | AU29: 150 | AW29: 150 | AX29: 5 | AY29: 0
P30: =IFERROR(VLOOKUP(O30,Códigos!K:N,2,FALSE),"") ->  | S30: =IF(AND(OR(O30=402,O30=502),N30=""),"",IF(BA30=1,"",IFERROR(IF(AW30="","",IF(AW30>0,(AW30*VLOOKUP(E30&"AM+E",Códigos!$A$2:$F$14,5,FALSE)*(IF($Q30>100,0,$Q30)/100)),0)),0))) -> 0 | AC30: 0 | AD30: 0 | AE30: 0 | AF30: 0 | AG30: 0 | AH30: 1 | AI30: 7 | AJ30: 2023 | AK30: 30 | AL30: 11 | AM30: 2023 | AN30: 31 | AO30: 31 | AP30: 30 | AQ30: 31 | AR30: 30 | AS30: 2023-07-01 | AT30: 2023-11-30 | AU30: 150 | AW30: 150 | AX30: 5 | AY30: 0
P31: =IFERROR(VLOOKUP(O31,Códigos!K:N,2,FALSE),"") ->  | S31: =IF(AND(OR(O31=402,O31=502),N31=""),"",IF(BA31=1,"",IFERROR(IF(AW31="","",IF(AW31>0,(AW31*VLOOKUP(E31&"AM+E",Códigos!$A$2:$F$14,5,FALSE)*(IF($Q31>100,0,$Q31)/100)),0)),0))) -> 0 | AC31: 0 | AD31: 0 | AE31: 0 | AF31: 0 | AG31: 0 | AH31: 1 | AI31: 7 | AJ31: 2023 | AK31: 30 | AL31: 11 | AM31: 2023 | AN31: 31 | AO31: 31 | AP31: 30 | AQ31: 31 | AR31: 30 | AS31: 2023-07-01 | AT31: 2023-11-30 | AU31: 150 | AW31: 150 | AX31: 5 | AY31: 0
P32: =IFERROR(VLOOKUP(O32,Códigos!K:N,2,FALSE),"") ->  | S32: =IF(AND(OR(O32=402,O32=502),N32=""),"",IF(BA32=1,"",IFERROR(IF(AW32="","",IF(AW32>0,(AW32*VLOOKUP(E32&"AM+E",Códigos!$A$2:$F$14,5,FALSE)*(IF($Q32>100,0,$Q32)/100)),0)),0))) -> 0 | AC32: 0 | AD32: 0 | AE32: 0 | AF32: 0 | AG32: 0 | AH32: 1 | AI32: 7 | AJ32: 2023 | AK32: 30 | AL32: 11 | AM32: 2023 | AN32: 31 | AO32: 31 | AP32: 30 | AQ32: 31 | AR32: 30 | AS32: 2023-07-01 | AT32: 2023-11-30 | AU32: 150 | AW32: 150 | AX32: 5 | AY32: 0
P33: =IFERROR(VLOOKUP(O33,Códigos!K:N,2,FALSE),"") ->  | S33: =IF(AND(OR(O33=402,O33=502),N33=""),"",IF(BA33=1,"",IFERROR(IF(AW33="","",IF(AW33>0,(AW33*VLOOKUP(E33&"AM+E",Códigos!$A$2:$F$14,5,FALSE)*(IF($Q33>100,0,$Q33)/100)),0)),0))) -> 0 | AC33: 0 | AD33: 0 | AE33: 0 | AF33: 0 | AG33: 0 | AH33: 1 | AI33: 7 | AJ33: 2023 | AK33: 30 | AL33: 11 | AM33: 2023 | AN33: 31 | AO33: 31 | AP33: 30 | AQ33: 31 | AR33: 30 | AS33: 2023-07-01 | AT33: 2023-11-30 | AU33: 150 | AW33: 150 | AX33: 5 | AY33: 0
P34: =IFERROR(VLOOKUP(O34,Códigos!K:N,2,FALSE),"") ->  | S34: =IF(AND(OR(O34=402,O34=502),N34=""),"",IF(BA34=1,"",IFERROR(IF(AW34="","",IF(AW34>0,(AW34*VLOOKUP(E34&"AM+E",Códigos!$A$2:$F$14,5,FALSE)*(IF($Q34>100,0,$Q34)/100)),0)),0))) -> 0 | AC34: 0 | AD34: 0 | AE34: 0 | AF34: 0 | AG34: 0 | AH34: 1 | AI34: 7 | AJ34: 2023 | AK34: 30 | AL34: 11 | AM34: 2023 | AN34: 31 | AO34: 31 | AP34: 30 | AQ34: 31 | AR34: 30 | AS34: 2023-07-01 | AT34: 2023-11-30 | AU34: 150 | AW34: 150 | AX34: 5 | AY34: 0
E35: =IF(J35="","",IF(K35>=65,1,IF(AND(K35>=33,OR(J35="P. Cerebral",J35="Enf. Mental",J35="D. Intelectual",J35="Psíquica")),1,0))) ->  | P35: =IFERROR(VLOOKUP(O35,Códigos!K:N,2,FALSE),"") ->  | R35: =IF(AND(OR(O35=402,O35=502),N35=""),"",IF(BA35=1,"",W35)) ->  | S35: =IF(AND(OR(O35=402,O35=502),N35=""),"",IF(BA35=1,"",IFERROR(IF(AW35="","",IF(AW35>0,(AW35*VLOOKUP(E35&"AM+E",Códigos!$A$2:$F$14,5,FALSE)*(IF($Q35>100,0,$Q35)/100)),0)),0))) -> 0 | U35: =IFERROR(IF(IF(S35="",0,S35)+IF(T35="",0,T35)=0,"",IF(S35="",0,S35)+IF(T35="",0,T35)),"") ->  | W35: =IFERROR(IF(SUM(X35:AB35)=0,"",SUM(X35:AB35)),"") ->  | X35: =IF(OR(AC35=0,AN35=0),"",IF(AN35-AC35+1>30,30,AN35-AC35+1)) ->  | Y35: =IF(OR(AD35=0,AO35=0),"",IF(AO35-AD35+1>30,30,AO35-AD35+1)) ->  | Z35: =IF(OR(AE35=0,AP35=0),"",IF(AP35-AE35+1>30,30,AP35-AE35+1)) ->  | AA35: =IF(OR(AF35=0,AQ35=0),"",IF(AQ35-AF35+1>30,30,AQ35-AF35+1)) ->  | AB35: =IF(OR(AG35=0,AR35=0),"",IF(AR35-AG35+1>30,30,AR35-AG35+1)) ->  | AC35: 0 | AD35: 0 | AE35: 0 | AF35: 0 | AG35: 0 | AH35: 1 | AI35: 7 | AJ35: 2023 | AK35: 30 | AL35: 11 | AM35: 2023 | AN35: 31 | AO35: 31 | AP35: 30 | AQ35: 31 | AR35: 30 | AS35: =IF(M35<=$G$7,$G$7,IF(AND(M35>$G$7,M35<=$H$7),M35,IF(M35>$H$7,1))) -> 2023-07-01 | AT35: =IF(M35>$H$7,0,IF(N35<=$H$7,N35,IF(N35="",$H$7,IF(N35>$H$7,$H$7)))) -> 00:00:00 | AU35: =DAYS360(AS35-1,AT35) -> -44460 | AV35: =IF(AU35=W35,"Ok","") ->  | AW35: =AU35 -> -44460 | AX35: =IF(COLUMN()>0,5,5) -> 5 | AY35: 0
J37: Lugar e data:
J38: SINATURA DA PERSOA REPRESENTANTE

Sheet Contador (hidden)
A2: expediente | B2: 0 | F2: Verdadero

Sheet Códigos (hidden)
A1: Códigos | C1: SMI 2018 | D1: =H1/30 -> 36 | E1: =D1/12*2 -> 6 | F1: Achega/mes | G1: SMI 2019 | H1: 1080 | K1: cod | M1: tipo | N1: tempo | O1: nome | P1: obxecto
A2: =B2&C2 -> 0AM+E | B2: 0 | C2: AM+E | D2: =D3+D4 -> 0.5 | E2: =ROUND(D2*$D$1+$E$1*D2,2) -> 21 | F2: =ROUND(D2*$H$1+$I$2*D2,2) -> 630 | H2: Prorrata 2PE | I2: =H1/12*2 -> 180 | K2: 100 | L2: =IF(M2="Indefinido","Ind","Temp") -> Ind | M2: Indefinido | N2: TIEMPO COMPLETO | O2: ORDINARIO
A3: 0AM | B3: 0 | C3: AM | D3: 0.5 | E3: =ROUND(D3*$D$1,2) -> 18 | F3: =ROUND(D3*$H$1,2) -> 540 | K3: 109 | L3: =IF(M3="Indefinido","Ind","Temp") -> Ind | M3: Indefinido | N3: TIEMPO COMPLETO | O3: FOMENTO CONTRATACIÓN INDEFINIDA / EMPLEO ESTABLE | P3: TRANSFORMACIÓN CONTRATO Temporal
K4: 130 | L4: Ind | M4: Indefinido | N4: TIEMPO COMPLETO | O4: MINUSVÁLIDOS
A5: =B5&C5 -> 0CP | B5: 0 | C5: CP | D5: =0.5/6 -> 0.08 | E5: =ROUND(D5*$D$1,2) -> 2.88 | F5: =ROUND(D5*$H$1,2) -> 86.4 | K5: 139 | L5: Ind | M5: Indefinido | N5: TIEMPO COMPLETO | O5: MINUSVÁLIDOS | P5: TRANSFORMACIÓN CONTRATO Temporal
A6: =B6&C6 -> 0CV | B6: 0 | C6: CV | D6: 0.5 | E6: =ROUND(D6*$D$1,2) -> 18 | F6: =ROUND(D6*$H$1,2) -> 540 | K6: 150 | L6: Ind | M6: Indefinido | N6: TIEMPO COMPLETO | O6: FOMENTO CONTRATACIÓN INDEFINIDA / EMPLEO ESTABLE | P6: INICIAL
A7: 0CV+E | B7: 0 | C7: CV+E | D7: =D3+D4 -> 0.5 | E7: =ROUND(D7*$D$1,2) -> 18 | F7: =ROUND(D7*$H$1,2) -> 540 | K7: 189 | L7: Ind | M7: Indefinido | N7: TIEMPO COMPLETO | P7: TRANSFORMACIÓN CONTRATO Temporal
K8: 200 | L8: Ind | M8: Indefinido | N8: TIEMPO PARCIAL | O8: ORDINARIO
A9: 1AM+E | B9: 1 | C9: AM+E | D9: 0.6 | E9: =ROUND(D9*$D$1+$E$1*D9,2) -> 25.2 | F9: =ROUND(D9*$H$1+$I$2*D9,2) -> 756 | K9: 209 | L9: Ind | M9: Indefinido | N9: TIEMPO PARCIAL | O9: FOMENTO CONTRATACIÓN INDEFINIDA / EMPLEO ESTABLE | P9: TRANSFORMACIÓN CONTRATO Temporal
A10: 1AM | B10: 1 | C10: AM | D10: 0.6 | E10: =ROUND(D10*$D$1,2) -> 21.6 | F10: =ROUND(D10*$H$1,2) -> 648 | K10: 230 | L10: Ind | M10: Indefinido | N10: TIEMPO PARCIAL | O10: MINUSVÁLIDOS
K11: 239 | L11: Ind | M11: Indefinido | N11: TIEMPO PARCIAL | O11: MINUSVÁLIDOS | P11: TRANSFORMACIÓN CONTRATO Temporal
A12: 1CP | B12: 1 | C12: CP | D12: =0.6/6 -> 0.1 | E12: =ROUND(D12*$D$1,2) -> 3.6 | F12: =ROUND(D12*$H$1,2) -> 108 | K12: 250 | L12: Ind | M12: Indefinido | N12: TIEMPO PARCIAL | O12: FOMENTO CONTRATACIÓN INDEFINIDA / EMPLEO ESTABLE | P12: INICIAL
A13: 1CV | B13: 1 | C13: CV | D13: 0.6 | E13: =ROUND(D13*$D$1,2) -> 21.6 | F13: =ROUND(D13*$H$1,2) -> 648 | K13: 289 | L13: Ind | M13: Indefinido | N13: TIEMPO PARCIAL | P13: TRANSFORMACIÓN CONTRATO Temporal
A14: 1CV+E | B14: 1 | C14: CV+E | D14: 0.6 | E14: =ROUND(D14*$D$1+$E$1*D14,2) -> 25.2 | F14: =ROUND(D14*$H$1+$I$2*D14,2) -> 756 | K14: 300 | L14: Ind | M14: Indefinido | N14: FIJO/DISCONTINUO
K15: 309 | L15: Ind | M15: Indefinido | N15: FIJO/DISCONTINUO | O15: FOMENTO CONTRATACIÓN INDEFINIDA / EMPLEO ESTABLE | P15: TRANSFORMACIÓN CONTRATO Temporal
A16: Minusvalía | C16: Tipo | K16: 330 | L16: Ind | M16: Indefinido | N16: FIJO/DISCONTINUO | O16: MINUSVÁLIDOS
A17: Pensionista | C17: minus | K17: 350 | L17: Ind | M17: Indefinido | N17: FIJO/DISCONTINUO | O17: FOMENTO CONTRATACIÓN INDEFINIDA / EMPLEO ESTABLE | P17: INICIAL
A18: Definitiva | C18: Física | K18: 389 | L18: Ind | M18: Indefinido | N18: FIJO/DISCONTINUO | P18: TRANSFORMACIÓN CONTRATO Temporal
A19: Provisional | C19: Sensorial | K19: 401 | L19: Temp | M19: Duración Determinada | N19: TIEMPO COMPLETO | O19: OBRA O SERVICIO DETERMINADO
C20: P. Cerebral | K20: 402 | L20: Temp | M20: Duración Determinada | N20: TIEMPO COMPLETO | O20: EVENTUAL POR CIRCUNSTANCIAS DE LA PRODUCCIÓN
A21: sexo | C21: Enf. Mental | K21: 403 | L21: Temp | M21: Duración Determinada | N21: TIEMPO COMPLETO | O21: INSERCIÓN
A22: H | C22: D. Intelectual | K22: 408 | L22: Temp | M22: Temporal | N22: TIEMPO COMPLETO | P22: CARÁCTER ADMINISTRATIVO
A23: M | C23: Psíquica | K23: 410 | L23: Temp | M23: Duración Determinada | N23: TIEMPO COMPLETO | O23: INTERINIDAD
K24: 418 | L24: Temp | M24: Duración Determinada | N24: TIEMPO COMPLETO | O24: INTERINIDAD | P24: CARÁCTER ADMINISTRATIVO
K25: 420 | L25: Temp | M25: Temporal | N25: TIEMPO COMPLETO | O25: PRÁCTICAS
A26: Conv | K26: 421 | L26: Temp | M26: Temporal | N26: TIEMPO COMPLETO | O26: FORMACIÓN
A27: Baixa | K27: 430 | L27: Temp | M27: Temporal | N27: TIEMPO COMPLETO | O27: MINUSVÁLIDOS
A28: Si | K28: 441 | L28: Temp | M28: Temporal | N28: TIEMPO COMPLETO | O28: RELEVO
A29: Non | K29: 450 | L29: Temp | M29: Temporal | N29: TIEMPO COMPLETO | O29: FOMENTO CONTRATACIÓN INDEFINIDA / EMPLEO ESTABLE
K30: 501 | L30: Temp | M30: Duración Determinada | N30: TIEMPO PARCIAL | O30: OBRA O SERVICIO DETERMINADO
B31: Mes | K31: 502 | L31: Temp | M31: Duración Determinada | N31: TIEMPO PARCIAL | O31: EVENTUAL POR CIRCUNSTANCIAS DE LA PRODUCCIÓN
B32: 7 | C32: Xullo | K32: 503 | L32: Temp | M32: Duración Determinada | N32: TIEMPO PARCIAL | O32: INSERCIÓN
B33: 8 | C33: Agosto | K33: 508 | L33: Temp | M33: Temporal | N33: TIEMPO PARCIAL | P33: CARÁCTER ADMINISTRATIVO
B34: 9 | C34: Setembro | K34: 510 | L34: Temp | M34: Duración Determinada | N34: TIEMPO PARCIAL | O34: INTERINIDAD
B35: 10 | C35: Outubro | K35: 518 | L35: Temp | M35: Duración Determinada | N35: TIEMPO PARCIAL | O35: INTERINIDAD | P35: CARÁCTER ADMINISTRATIVO
B36: 11 | C36: Novembro | K36: 520 | L36: Temp | M36: Temporal | N36: TIEMPO PARCIAL | O36: PRÁCTICAS
B37: 12 | C37: Decembro | K37: 530 | L37: Temp | M37: Temporal | N37: TIEMPO PARCIAL | O37: MINUSVÁLIDOS
B38: 1 | C38: Xaneiro | K38: 540 | L38: Temp | M38: Temporal | N38: TIEMPO PARCIAL | O38: JUBILADO PARCIAL
B39: 2 | C39: Febreiro | K39: 541 | L39: Temp | M39: Temporal | N39: TIEMPO PARCIAL | O39: RELEVO
B40: 3 | C40: Marzo | K40: 550 | L40: Temp | M40: Temporal | N40: TIEMPO PARCIAL | O40: FOMENTO CONTRATACIÓN INDEFINIDA / EMPLEO ESTABLE
B41: 4 | C41: Abril
B42: 5 | C42: Maio
B43: 6 | C43: Xuño

Sheet Campos a cubrir (hidden)
A1: Este modelo está en formato Excel e, polo tanto, aínda que pode ser cuberta utilizando LibreOffice, debe gardar os cambios no mesmo formato. | I1: I M P O R T A N T E
A3: A continuación describense os campos do formulario con indicación do tipo de campo, a súa descrición, si é un campo autocalculado e si se cubre ou non | I3: Este modelo de folla de cálculo tén celdas ocultas, e celdas con fórmulas (algunhas delas ocultas)
I4: para inserir novas filas ou para borrar información deben terse en conta as seguintes
A5: Campo | C5: Tamaño | D5: Tipo | E5: Descrición | I5: recomendacións:
A6: Nº Exp | C6: 19 | D6: Texto | E6: Nº de Expediente administrativo asignado na convocatoria de axudas | F6: Non é un campo obrigatorio
A7: C.E.E. | C7: 50 | D7: Texto | E7: Nome do Centro Especial de Emprego | I7: Borrar información
A8: C.I.F. | C8: 9 | D8: Texto | E8: C.I.F. do Centro Especial de Emprego
A9: Novo Idx | D9: Numérico | E9: Suxire o nº de índice polo que se vincularía a alta dunha nova persoa traballadora | F9: Non se cubre | G9: Autocalculado | I9: No caso de querer borrar a información dunha fila completamente debemos facelo
A10: Idx | C10: 3 | D10: Numérico | E10: Indicaría o nº de índice polo que se vincularía á persoa traballadora (é único para cada traballador e contrato de traballo) | I10: copiando na fila que queremos borrar a inforación dunha fila que esté totalmente en
A11: Nº Rexistro ou data publicación C.C. | C11: 3 | D11: Texto | E11: Nº de Rexistro ou data de publicación do convenio colectivo de aplicación ó traballador | I11: blanco, xa que así conservamos a formulas de cálculo ocultas cos seus valores correctos.
A12: Salario/mes Convenio Colectivo | D12: Numérico | E12: Importe mensual do salario bruto a percibir por cada traballador
A13: Conv. Baixa | D13: Texto | E13: lista despregable para indicar si os calculos das baixas por enfermidade correspondense co que dispoña a normativa da Seguridade Social ou si hai un convenio colectivo de aplicación específica | I13: Para facer esto temos que marcar a fila en blanco a copiar (totalmente) facendo a selección
A14: G D | C14: 1 | D14: Numérico | E14: Permite determinar si pola persoa traballadora se precibe una subvención do 50 % do SMI ou si se prima cun 10 % adicional determinado na orde de convocatoria de axudas | F14: Non se cubre | G14: Autocalculado | I14: desde o número indicativo da fila (non desde unha celda), seleccionar a opción de copiar e
A15: Traballador | C15: 50 | D15: Texto | E15: Apelidos e nome da persoa traballadora | I15: posicionarnos a celda que corresponda co Idx/Idn da fila a borrar, e logo pegar a información
A16: D.N.I. | C16: 9 | D16: Texto | E16: Documento Nacional de Identidade da persoa traballadora | I16: seleccionada. Desta maneira aseguramonos de que todas as formulas, ocultas ou non, se
A17: Data Nacemento | C17: 6 | D17: Data dd/mm/aa | E17: Data de nacemento | I17: copian correctamente na fila que acabamos de borrar
A18: Sexo | C18: 1 | D18: Texto | E18: Sexo
A19: Discapacidade | C19: 14 | D19: Texto | E19: Tipo de discapacidade. Lista despregable cos seguintes valores (Física, Sensorial, P. Cerebral, Enf. Mental, D. Intelectual, Psíquica) | I19: Inserir novas filas para engadir datos de novas persoas traballadoras
A20: Grao | C20: 4 | D20: Numérico | E20: % de discapacidade da persoa traballadora | I20: Para facer insercións correctamente debemos:
A21: Tipo | C21: 11 | D21: Texto | E21: lista despregable donde se indica si a discapacidade do traballador é Provisional, Definitiva ou si é Pensionista con consideración de persoa con discapacidade (o contrato debe ser anterior a 29/11/2018)
A22: Data Alta | C22: 6 | D22: Data dd/mm/aa | E22: Data de inicio da relación laboral (data de alta do contrato de traballo) | I22: 1º | J22: Seleccionar o rango de filas a inserir e executar o comando
A23: Data Baixa | C23: 6 | D23: Data dd/mm/aa | E23: Data de finalización da relación laboral (data de baixa do contrato de traballo) | I23: 2º | J23: Seleccionar completamente unha fila con datos cubertos totalmente
A24: Contrato Código | C24: 3 | D24: Numérico | E24: Código do contrato de traballo según a codificación do INSS (*) | F24: (*)No caso de contratos 402 ou 502 débese indicar a data de finalización do mesmo | J24: (seleccionando desde o número indicativo da fila)
A25: Contrato Tipo | C25: 4 | D25: Texto | E25: Sinala si o contrato de traballo é de carácter indefinido (Ind) ou temporal (Temp) | F25: Non se cubre | G25: Autocalculado | I25: 3º | J25: Escoller o comando copiar
A26: Rateo | C26: 3 | D26: Texto | E26: Lista despregable de dous valores (Si - Non) Indica si nas retribucións percibidas mensualmente pola persoa traballadora se inclúe ou non a Parte proporcional das Pagas Extraordinarias (só a efectos de clasificación, os cálculos das achegas mensuais xa incluen a p.p. da paga extraordinaria) | I26: 4º | J26: Pegar nas novas filas en branco a selección anterior para que se restablezan nas
A27: % Xornada | C27: 4 | D27: Numérico | E27: % de Xornada da persoa traballadora no mes de inicio do período subvencionable | J27: novas filas as fórmulas ocultas ou non para poder facer posibles os cálulos)
A28: 1º Anualdiade Días | C28: 3 | D28: Numérico | E28: Totalidade de días correspondentes á 1ª anualidade por persoa traballadora | F28: Non se cubre | G28: Autocalculado | J28: posicionandonos na celda que corresponda con campo Idx/Idn da nova fila a inserir
A29: 1º Anualidade Achega Sol | D29: Numérico | E29: Importe total da Achega solicitada na 1ª Anualidade por persoa traballadora | F29: Non se cubre | G29: Autocalculado
A30: 2º Anualidade Días | D30: Numérico | E30: Totalidade de días correspondentes á 2ª anualidade por persoa traballadora | F30: Non se cubre | G30: Autocalculado | I30: *****
A31: 2º Anualidade Achega Sol | D31: Numérico | E31: Importe total da Achega solicitada na 2ª Anualidade por persoa traballadora | F31: Non se cubre | G31: Autocalculado | I31: No caso de que nalgunha celda se borrase unha fórmula necesaria para o correcto cálculo da
A32: Total Traballador | D32: Numérico | E32: Importe global da Achega solicitada por persoa traballadora | F32: Non se cubre | G32: Autocalculado | I32: subvención, sempre se pode repoñer copiando a fórmula correspondente dunha celda que faga
A33: D.N.I. Sustituido | C33: 9 | D33: Texto | E33: Nº de D.N.I. da persoa traballadora sustituido no caso de contratos de Interinidade (Código 410 ou 510) | I33: ese mesmo cálculo para outra persoa traballadora
A34: Días 1º Anualidade | C34: 3 | D34: Numérico | E34: Totalidade de días correspondentes á 1ª anualidade | F34: Non se cubre | G34: Autocalculado
A35: 1º Anualidade | B35: 7 | C35: 2 | D35: Numérico | E35: ="Nº de días de subvención correspondentes ao mes de "&VLOOKUP(B35,Códigos!$B$31:$C$43,2,0) -> Nº de días de subvención correspondentes ao mes de Xullo | F35: Non se cubre | G35: Autocalculado
B36: 8 | C36: 2 | D36: Numérico | E36: ="Nº de días de subvención correspondentes ao mes de "&VLOOKUP(B36,Códigos!$B$31:$C$43,2,0) -> Nº de días de subvención correspondentes ao mes de Agosto | F36: Non se cubre | G36: Autocalculado
B37: 9 | C37: 2 | D37: Numérico | E37: ="Nº de días de subvención correspondentes ao mes de "&VLOOKUP(B37,Códigos!$B$31:$C$43,2,0) -> Nº de días de subvención correspondentes ao mes de Setembro | F37: Non se cubre | G37: Autocalculado
B38: 10 | C38: 2 | D38: Numérico | E38: ="Nº de días de subvención correspondentes ao mes de "&VLOOKUP(B38,Códigos!$B$31:$C$43,2,0) -> Nº de días de subvención correspondentes ao mes de Outubro | F38: Non se cubre | G38: Autocalculado
B39: 11 | C39: 2 | D39: Numérico | E39: ="Nº de días de subvención correspondentes ao mes de "&VLOOKUP(B39,Códigos!$B$31:$C$43,2,0) -> Nº de días de subvención correspondentes ao mes de Novembro | F39: Non se cubre | G39: Autocalculado
A40: Días 2º Anualidade | C40: 3 | D40: Numérico | E40: Totalidade de días correspondentes á 2ª anualidade | F40: Non se cubre | G40: Autocalculado
A41: 2º Anualidade | B41: 12 | C41: 2 | D41: Numérico | E41: ="Nº de días de subvención correspondentes ao mes de "&VLOOKUP(B41,Códigos!$B$31:$C$43,2,0) -> Nº de días de subvención correspondentes ao mes de Decembro | F41: Non se cubre | G41: Autocalculado
B42: 1 | C42: 2 | D42: Numérico | E42: ="Nº de días de subvención correspondentes ao mes de "&VLOOKUP(B42,Códigos!$B$31:$C$43,2,0) -> Nº de días de subvención correspondentes ao mes de Xaneiro | F42: Non se cubre | G42: Autocalculado
B43: 2 | C43: 2 | D43: Numérico | E43: ="Nº de días de subvención correspondentes ao mes de "&VLOOKUP(B43,Códigos!$B$31:$C$43,2,0) -> Nº de días de subvención correspondentes ao mes de Febreiro | F43: Non se cubre | G43: Autocalculado
B44: 3 | C44: 2 | D44: Numérico | E44: ="Nº de días de subvención correspondentes ao mes de "&VLOOKUP(B44,Códigos!$B$31:$C$43,2,0) -> Nº de días de subvención correspondentes ao mes de Marzo | F44: Non se cubre | G44: Autocalculado
B45: 4 | C45: 2 | D45: Numérico | E45: ="Nº de días de subvención correspondentes ao mes de "&VLOOKUP(B45,Códigos!$B$31:$C$43,2,0) -> Nº de días de subvención correspondentes ao mes de Abril | F45: Non se cubre | G45: Autocalculado
B46: 5 | C46: 2 | D46: Numérico | E46: ="Nº de días de subvención correspondentes ao mes de "&VLOOKUP(B46,Códigos!$B$31:$C$43,2,0) -> Nº de días de subvención correspondentes ao mes de Maio | F46: Non se cubre | G46: Autocalculado
B47: 6 | C47: 2 | D47: Numérico | E47: ="Nº de días de subvención correspondentes ao mes de "&VLOOKUP(B47,Códigos!$B$31:$C$43,2,0) -> Nº de días de subvención correspondentes ao mes de Xuño | F47: Non se cubre | G47: Autocalculado
